bitfinex-derivatives/quotes_BTCF0:USTF0_20241005
["timestamp","ask_amount","ask_price","bid_price","bid_amount"]
[1728121096870,0.05166696,62308.0,62307.0,0.001]
[1728121097073,0.12196584,62308.0,62307.0,0.001]
[1728121098882,0.00240793,62308.0,62307.0,0.001]
[1728121102093,0.00240793,62308.0,62307.0,0.17717]
[1728121113486,0.3608,62311.0,62310.0,0.056167]
[1728121113677,0.3608,62311.0,62310.0,0.176167]
[1728121113882,0.17711301,62311.0,62310.0,0.12]
[1728121114289,0.38562985,62311.0,62310.0,0.12]
[1728121114682,0.17711301,62311.0,62310.0,0.12]
[1728121114878,0.17711301,62311.0,62310.0,0.121]
[1728121115084,0.11955579,62311.0,62310.0,0.122]
[1728121115488,0.11955579,62311.0,62310.0,0.178167]
[1728121116191,0.05755722,62315.0,62310.0,0.178167]
[1728121116384,0.17710229,62314.0,62310.0,0.178167]
[1728121116584,0.11954507,62313.0,62310.0,0.178167]
[1728121116785,0.11954507,62312.0,62310.0,0.178167]
[1728121116995,0.11954507,62311.0,62310.0,0.178167]
[1728121121307,0.17710229,62311.0,62310.0,0.178167]
[1728121121887,0.03099623,62311.0,62310.0,0.002]
[1728121122087,0.056163,62315.0,62310.0,0.178167]
[1728121122088,0.03099623,62314.0,62310.0,0.178167]
[1728121122299,0.07029134,62313.0,62310.0,0.178167]
[1728121122500,0.07029134,62312.0,62310.0,0.178167]
[1728121122701,0.056164,62314.0,62310.0,0.178167]
[1728121122702,0.03099623,62311.0,62310.0,0.178167]
[1728121123499,0.03099623,62313.0,62310.0,0.178167]
[1728121123692,0.07029133,62312.0,62310.0,0.178167]
[1728121124005,0.03099623,62311.0,62310.0,0.177167]
[1728121124192,0.03099623,62311.0,62310.0,0.178167]
[1728121124391,0.07029134,62313.0,62310.0,0.178167]
[1728121124694,0.056167,62311.0,62310.0,0.002]
[1728121124894,0.12645834,62311.0,62310.0,0.002]
[1728121125406,0.12646334,62311.0,62310.0,0.00107659]
[1728121125598,0.12646334,62311.0,62310.0,0.001]
[1728121125902,0.12646334,62311.0,62310.0,0.002]
[1728121126207,0.12646298,62311.0,62310.0,0.002]
[1728121127106,0.12646298,62311.0,62310.0,0.121]
[1728121127295,0.12646298,62311.0,62310.0,0.122]
[1728121128998,0.14436842,62314.0,62310.0,1.20344]
[1728121129195,0.00888,62318.0,62317.0,0.056161]
[1728121129399,0.420654,62325.0,62317.0,0.6014]
[1728121129605,0.416954,62325.0,62323.0,0.12]
[1728121129800,0.418434,62325.0,62323.0,0.12]
[1728121130298,0.36228,62325.0,62323.0,0.12]
[1728121130610,0.36228,62325.0,62324.0,0.056155]
[1728121130801,0.36228,62325.0,62324.0,0.537515]
[1728121131312,0.3608,62325.0,62324.0,0.056155]
[1728121132017,0.3608,62325.0,62324.0,0.057155]
[1728121132307,0.3608,62325.0,62324.0,0.058155]
[1728121133811,0.3608,62325.0,62324.0,0.08726211]
[1728121136910,0.57045242,62325.0,62324.0,0.08726211]
[1728121137219,0.609739,62325.0,62324.0,0.08726211]
[1728121137714,0.08852964,62325.0,62324.0,0.08726211]
[1728121137911,0.26468364,62325.0,62324.0,0.03110711]
[1728121138217,0.20852964,62325.0,62324.0,0.03110711]
[1728121138712,0.14468364,62325.0,62324.0,0.03110711]
[1728121139114,0.17567517,62325.0,62324.0,0.03110711]
[1728121139812,0.30237678,62325.0,62324.0,0.03110711]
[1728121140011,0.35161984,62325.0,62324.0,0.03110711]
[1728121140213,0.29546965,62325.0,62324.0,0.03110711]
[1728121140419,0.29546965,62325.0,62324.0,0.44806211]
[1728121140716,0.11952498,62325.0,62324.0,0.44806211]
[1728121140915,0.40613181,62325.0,62324.0,0.44806211]
[1728121141117,0.11952498,62325.0,62324.0,0.44806211]
[1728121141813,0.23019879,62325.0,62324.0,0.44806211]
[1728121143113,0.27944425,62325.0,62324.0,0.44806211]
[1728121143313,0.11952498,62325.0,62324.0,0.44806211]
[1728121143510,0.15991927,62329.0,62326.0,0.056152]
[1728121143716,0.07027221,62328.0,62327.0,0.12]
[1728121143911,0.15991927,62329.0,62327.0,0.23806374]
[1728121144118,0.15991927,62329.0,62328.0,0.11806374]
[1728121146015,0.15991927,62329.0,62328.0,0.11906374]
[1728121146411,0.15991927,62329.0,62328.0,0.12006374]
[1728121148224,0.056148,62332.0,62328.0,0.12006374]
[1728121148426,0.056148,62332.0,62330.0,0.07952422]
[1728121150221,0.056148,62332.0,62330.0,0.08052422]
[1728121150928,0.056148,62332.0,62330.0,0.001]
[1728121151424,0.176149,62331.0,62330.0,0.001]
[1728121151622,0.12,62331.0,62325.0,0.0112]
[1728121151824,0.056153,62326.0,62325.0,0.0112]
[1728121152125,0.056153,62326.0,62323.0,0.056156]
[1728121152522,0.12,62328.0,62321.0,0.12]
[1728121152822,0.0314,62330.0,62320.0,0.0112]
[1728121152823,0.12,62324.0,62320.0,0.0112]
[1728121153020,0.176158,62321.0,62318.0,0.056159]
[1728121153219,0.056159,62320.0,62317.0,0.37440657]
[1728121153415,0.056159,62320.0,62317.0,0.36320657]
[1728121154623,0.0302,62323.0,62317.0,0.36320657]
[1728121154929,0.032,62322.0,62318.0,0.05616]
[1728121155121,0.056158,62321.0,62318.0,0.05616]
[1728121155520,0.057158,62321.0,62318.0,0.05716]
[1728121155826,0.002,62320.0,62318.0,0.05716]
[1728121156328,0.059158,62321.0,62318.0,0.05816]
[1728121156930,0.001,62320.0,62318.0,0.05816]
[1728121157917,0.002,62320.0,62318.0,0.05816]
[1728121158528,0.001,62320.0,62318.0,0.05816]
[1728121158844,0.05443147,62319.0,62318.0,0.002]
[1728121159141,0.001,62320.0,62318.0,0.26214427]
[1728121159437,0.002,62320.0,62319.0,0.26014427]
[1728121159622,0.058158,62320.0,62319.0,0.26014427]
[1728121160025,0.057158,62320.0,62319.0,0.26014427]
[1728121160827,0.417958,62320.0,62319.0,0.26014427]
[1728121161029,0.416958,62320.0,62319.0,0.26014427]
[1728121161625,0.417958,62320.0,62319.0,0.26114427]
[1728121162229,0.418958,62320.0,62319.0,0.26214427]
[1728121162422,0.418958,62320.0,62319.0,0.12068103]
[1728121166035,0.418958,62320.0,62319.0,0.002]
[1728121167332,0.418958,62320.0,62319.0,0.122]
[1728121169341,0.3628,62320.0,62319.0,0.122]
[1728121169535,0.3628,62320.0,62319.0,0.178159]
[1728121172244,0.418958,62320.0,62319.0,0.002]
[1728121174050,0.418958,62320.0,62319.0,0.12039452]
[1728121174234,0.058158,62320.0,62319.0,0.26148494]
[1728121177650,0.058158,62320.0,62319.0,0.26149497]
[1728121178945,0.3608,62321.0,62319.0,0.26149497]
[1728121179149,0.3608,62321.0,62320.0,0.25949497]
[1728121180043,0.536958,62321.0,62320.0,0.25949497]
[1728121180444,0.536958,62321.0,62320.0,0.11838481]
[1728121180645,0.536958,62321.0,62320.0,0.21410945]
[1728121180844,0.176158,62321.0,62320.0,0.11838481]
[1728121181049,0.056158,62320.0,62319.0,0.002]
[1728121181249,0.12,62320.0,62319.0,0.001]
[1728121181445,0.12,62320.0,62319.0,0.002]
[1728121181640,0.12,62320.0,62319.0,0.001]
[1728121181641,0.4808,62320.0,62319.0,0.001]
[1728121182045,0.4808,62320.0,62317.0,0.03197629]
[1728121182046,0.05616,62318.0,62317.0,0.03197629]
[1728121183155,0.05616,62318.0,62317.0,0.00340657]
[1728121183746,0.05616,62318.0,62317.0,0.00440657]
[1728121189058,0.12,62318.0,62317.0,0.26351455]
[1728121189453,0.53696,62318.0,62317.0,0.26351455]
[1728121190561,0.17616,62318.0,62317.0,0.26351455]
[1728121190761,0.53696,62318.0,62317.0,0.26351455]
[1728121192157,0.53696,62318.0,62317.0,0.26200589]
[1728121192553,0.17616,62318.0,62317.0,0.26200589]
[1728121195564,0.53696,62318.0,62317.0,0.26200589]
[1728121196659,0.17616,62318.0,62317.0,0.26200589]
[1728121197063,0.53696,62318.0,62317.0,0.26200589]
[1728121197562,0.17616,62318.0,62317.0,0.26200589]
[1728121197956,0.53696,62318.0,62317.0,0.26200589]
[1728121199663,0.17616,62318.0,62317.0,0.26200589]
[1728121199862,0.53696,62318.0,62317.0,0.26200589]
[1728121200565,0.17616,62318.0,62317.0,0.26200589]
[1728121200862,0.53696,62318.0,62317.0,0.26200589]
[1728121202962,0.17616,62318.0,62317.0,0.26200589]
[1728121203366,0.53696,62318.0,62317.0,0.26200589]
[1728121203958,0.65650105,62318.0,62317.0,0.00440657]
[1728121207471,0.29570105,62318.0,62317.0,0.00440657]
[1728121207665,0.80042299,62318.0,62317.0,0.00440657]
[1728121209863,0.43962299,62318.0,62317.0,0.00440657]
[1728121210174,0.80042299,62318.0,62317.0,0.00440657]
[1728121210366,0.80042294,62318.0,62317.0,0.00440657]
[1728121211071,0.41696,62318.0,62317.0,0.26214735]
[1728121214283,0.05616,62318.0,62317.0,0.26214735]
[1728121214780,0.17616,62318.0,62317.0,0.26214735]
[1728121215284,0.17616,62318.0,62317.0,0.26211286]
[1728121216685,0.53696,62318.0,62317.0,0.26211286]
[1728121218372,0.17616,62318.0,62317.0,0.26211286]
[1728121218778,0.53696,62318.0,62317.0,0.26211286]
[1728121219083,0.4808,62318.0,62317.0,0.2178507]
[1728121219574,0.4808,62318.0,62317.0,0.12197536]
[1728121220083,0.056165,62313.0,62312.0,0.0037]
[1728121220289,0.176165,62313.0,62312.0,0.13972354]
[1728121220586,0.176165,62313.0,62312.0,0.16914766]
[1728121220778,0.176165,62313.0,62312.0,0.02942412]
[1728121220977,0.176165,62313.0,62308.0,0.3928]
[1728121220978,0.056168,62309.0,62308.0,0.3928]
[1728121221176,0.176168,62309.0,62308.0,0.53085828]
[1728121221590,0.176168,62309.0,62308.0,0.49885828]
[1728121223292,0.176168,62309.0,62308.0,0.13805828]
[1728121223990,0.176168,62309.0,62308.0,0.16779738]
[1728121225587,0.056168,62309.0,62308.0,0.28779738]
[1728121225989,0.056168,62309.0,62308.0,0.1497391]
[1728121226395,0.12646245,62309.0,62308.0,0.1497391]
[1728121229391,0.08716561,62309.0,62308.0,0.1497391]
[1728121234097,0.01602053,62309.0,62308.0,0.287664]
[1728121234300,0.1835,62312.0,62308.0,0.287664]
[1728121234498,0.056167,62310.0,62309.0,0.1379249]
[1728121235094,0.056167,62310.0,62309.0,0.25335227]
[1728121235801,0.057167,62310.0,62309.0,0.25335227]
[1728121236199,0.00899004,62310.0,62309.0,0.25335227]
[1728121236402,0.057167,62310.0,62309.0,0.25335227]
[1728121240298,0.177167,62310.0,62309.0,0.25335227]
[1728121241208,0.056168,62309.0,62308.0,0.0287391]
[1728121241417,0.056168,62309.0,62305.0,0.12]
[1728121241418,0.12646279,62309.0,62305.0,0.12]
[1728121241598,0.03099776,62308.0,62305.0,0.12]
[1728121241795,0.03099776,62307.0,62305.0,0.12]
[1728121241994,0.03099776,62306.0,62305.0,0.12]
[1728121242199,0.03099776,62306.0,62305.0,0.20460989]
[1728121242401,0.03099776,62306.0,62305.0,0.20660989]
[1728121243308,0.03099776,62306.0,62305.0,0.21060989]
[1728121244311,0.03099775,62306.0,62305.0,0.21060989]
[1728121245708,0.03099772,62306.0,62305.0,0.21060989]
[1728121249109,0.11996133,62310.0,62305.0,0.61421476]
[1728121249408,0.11996133,62310.0,62306.0,0.52369484]
[1728121249409,0.056168,62309.0,62306.0,0.52369484]
[1728121249617,0.056168,62309.0,62307.0,0.25244318]
[1728121249815,0.056168,62309.0,62308.0,0.52369501]
[1728121251113,0.056168,62309.0,62308.0,0.41186468]
[1728121251908,0.057168,62309.0,62308.0,0.41186468]
[1728121252113,0.057168,62309.0,62308.0,0.41286468]
[1728121256219,0.12746271,62309.0,62308.0,0.001]
[1728121258513,0.08816572,62309.0,62308.0,0.001]
[1728121264120,0.057168,62309.0,62308.0,0.25272166]
[1728121264715,0.057168,62309.0,62308.0,0.30889066]
[1728121264716,0.001,62309.0,62308.0,0.30889066]
[1728121265112,0.130866,62312.0,62308.0,0.46781925]
[1728121265316,0.119666,62312.0,62309.0,0.52254135]
[1728121265520,0.119666,62312.0,62310.0,0.36361276]
[1728121265723,0.119666,62312.0,62311.0,0.25172166]
[1728121266319,0.120666,62312.0,62311.0,0.25172166]
[1728121267214,0.120666,62312.0,62311.0,0.25180629]
[1728121268119,0.121666,62312.0,62311.0,0.25180629]
[1728121271324,0.24121704,62312.0,62308.0,0.056169]
[1728121271628,0.14451487,62309.0,62308.0,0.056169]
[1728121271813,0.22476885,62309.0,62308.0,0.056169]
[1728121272015,0.08025398,62309.0,62308.0,0.056169]
[1728121272216,0.03099778,62309.0,62308.0,0.056169]
[1728121272418,0.08025398,62309.0,62308.0,0.056169]
[1728121272616,0.03099778,62309.0,62308.0,0.056169]
[1728121272819,0.08855326,62311.0,62308.0,0.056169]
[1728121272820,0.11955104,62311.0,62308.0,0.056169]
[1728121273026,0.11955104,62310.0,62308.0,0.056169]
[1728121273223,0.11955104,62309.0,62308.0,0.056169]
[1728121273420,0.1445155,62309.0,62308.0,0.056169]
[1728121273820,0.26406654,62309.0,62308.0,0.056169]
[1728121274023,0.07029484,62309.0,62308.0,0.057169]
[1728121274330,0.14451494,62309.0,62308.0,0.057169]
[1728121275619,0.11955104,62309.0,62308.0,0.057169]
[1728121275826,0.14451494,62310.0,62308.0,0.057169]
[1728121276516,0.14451494,62309.0,62308.0,0.057169]
[1728121276921,0.14451494,62309.0,62308.0,0.056169]
[1728121277116,0.26406637,62309.0,62308.0,0.057169]
[1728121277317,0.23306849,62309.0,62308.0,0.057169]
[1728121277523,0.26406637,62309.0,62308.0,0.057169]
[1728121277722,0.23306849,62309.0,62308.0,0.057169]
[1728121277923,0.14451494,62309.0,62308.0,0.057169]
[1728121278943,0.11955143,62309.0,62308.0,0.057169]
[1728121279331,0.16052213,62311.0,62308.0,0.30903938]
[1728121279525,0.16052213,62311.0,62309.0,0.25187038]
[1728121279833,0.16052213,62311.0,62310.0,0.25187038]
[1728121280532,0.056167,62311.0,62310.0,0.25187038]
[1728121281335,0.057167,62311.0,62310.0,0.25187038]
[1728121281728,0.057167,62311.0,62310.0,0.25187284]
[1728121283332,0.177167,62311.0,62310.0,0.25187284]
[1728121291342,0.121,62311.0,62310.0,0.25186604]
[1728121291550,0.177167,62311.0,62310.0,0.25186604]
[1728121294260,0.24055349,62311.0,62307.0,0.05617]
[1728121294453,0.12,62308.0,62307.0,0.05617]
[1728121294655,0.19029628,62308.0,62307.0,0.05617]
[1728121295959,0.19029628,62308.0,62307.0,0.05817]
[1728121298554,0.24646528,62308.0,62307.0,0.002]
[1728121301162,0.24646536,62308.0,62307.0,0.002]
[1728121301355,0.176169,62308.0,62307.0,0.36574013]
[1728121302463,0.176169,62308.0,62307.0,0.25384903]
[1728121305768,0.176169,62308.0,62307.0,0.25310272]
[1728121306162,0.176169,62308.0,62307.0,0.25310256]
[1728121306566,0.176169,62308.0,62307.0,0.36499366]
[1728121306772,0.176169,62308.0,62307.0,0.25310256]
[1728121307470,0.176169,62308.0,62307.0,0.36499366]
[1728121307673,0.176169,62308.0,62307.0,0.25310256]
[1728121309268,0.45848,62312.0,62307.0,0.25310256]
[1728121309575,0.457,62312.0,62309.0,0.09585202]
[1728121309778,0.056167,62311.0,62310.0,0.11455609]
[1728121311167,0.056167,62311.0,62310.0,0.11419763]
[1728121311365,0.176167,62311.0,62310.0,0.19410558]
[1728121311567,0.176167,62311.0,62310.0,0.19410575]
[1728121312069,0.177167,62311.0,62310.0,0.19410575]
[1728121315977,0.177167,62311.0,62310.0,0.19394032]
[1728121316273,0.177167,62311.0,62305.0,0.02843789]
[1728121316274,0.29672499,62311.0,62305.0,0.02843789]
[1728121316573,0.056173,62305.0,62303.0,0.056174]
[1728121316779,0.08717258,62304.0,62303.0,0.056174]
[1728121317277,0.12647192,62304.0,62303.0,0.056174]
[1728121317874,0.12647192,62304.0,62303.0,0.060174]
[1728121318579,0.12647192,62304.0,62303.0,0.004]
[1728121319578,0.12647192,62304.0,62303.0,0.03920044]
[1728121319771,0.12647192,62304.0,62303.0,0.01]
[1728121323684,0.12647192,62304.0,62303.0,0.186174]
[1728121323685,0.03099958,62304.0,62303.0,0.186174]
[1728121324370,0.02722052,62309.0,62303.0,0.37961529]
[1728121324570,0.02722052,62309.0,62307.0,0.12]
[1728121324767,0.02722052,62309.0,62308.0,0.24961529]
[1728121326379,0.02722052,62309.0,62308.0,0.25061529]
[1728121329182,0.02722052,62309.0,62308.0,0.25006813]
[1728121329985,0.02722052,62309.0,62308.0,0.27841866]
[1728121331380,0.09751675,62309.0,62307.0,0.10848787]
[1728121331579,0.1195534,62308.0,62307.0,0.05617]
[1728121332581,0.1195534,62308.0,62307.0,0.05817]
[1728121334681,0.1195534,62308.0,62307.0,0.08742395]
[1728121334885,0.20753023,62308.0,62307.0,0.08742395]
[1728121335194,0.1195534,62308.0,62307.0,0.08742395]
[1728121335675,0.2395534,62308.0,62307.0,0.08742395]
[1728121339383,0.2395534,62308.0,62307.0,0.3371366]
[1728121339384,0.06379224,62308.0,62307.0,0.3371366]
[1728121339587,0.481986,62312.0,62307.0,0.2809666]
[1728121339588,0.12,62309.0,62307.0,0.2809666]
[1728121339778,0.12,62309.0,62308.0,0.30588165]
[1728121342091,0.12,62309.0,62308.0,0.30688165]
[1728121346486,0.19029657,62309.0,62308.0,0.057169]
[1728121347995,0.23955408,62309.0,62308.0,0.057169]
[1728121348495,0.23955458,62309.0,62308.0,0.057169]
[1728121352398,0.38398851,62309.0,62308.0,0.057169]
[1728121353491,0.23955458,62309.0,62308.0,0.057169]
[1728121354504,0.12,62309.0,62308.0,0.30706918]
[1728121355199,0.12,62309.0,62308.0,0.3070685]
[1728121358295,0.58478215,62312.0,62308.0,0.2508995]
[1728121358495,0.58478215,62312.0,62310.0,0.12]
[1728121358702,0.58478215,62312.0,62311.0,0.24958445]
[1728121358999,0.58478215,62312.0,62311.0,0.30575145]
[1728121360193,0.58678215,62312.0,62311.0,0.30575145]
[1728121360399,0.22598215,62312.0,62311.0,0.17003207]
[1728121361097,0.22598215,62312.0,62311.0,0.30570974]
[1728121361599,0.29627491,62312.0,62311.0,0.056167]
[1728121361904,0.13579276,62312.0,62311.0,0.056167]
[1728121363299,0.25579276,62312.0,62311.0,0.056167]
[1728121364999,0.31195876,62312.0,62311.0,0.056167]
[1728121365891,0.241666,62312.0,62311.0,0.056167]
[1728121366094,0.31196077,62312.0,62311.0,0.056167]
[1728121368501,0.31196077,62312.0,62311.0,0.30578593]
[1728121368502,0.241666,62312.0,62311.0,0.30578593]
[1728121369502,0.056166,62312.0,62311.0,0.30578593]
[1728121369715,0.176166,62312.0,62311.0,0.30578593]
[1728121376596,0.176166,62312.0,62311.0,0.056167]
[1728121382108,0.056166,62312.0,62311.0,0.056167]
[1728121383509,0.09546175,62312.0,62311.0,0.056167]
[1728121383716,0.17571304,62312.0,62311.0,0.056167]
[1728121386209,0.13641729,62312.0,62311.0,0.056167]
[1728121386409,0.17571304,62312.0,62311.0,0.056167]
[1728121391224,0.17571303,62312.0,62311.0,0.056167]
[1728121391625,0.21669328,62312.0,62311.0,0.30408735]
[1728121392228,0.056166,62312.0,62311.0,0.30408735]
[1728121394226,0.3608,62315.0,62311.0,0.24792035]
[1728121394427,0.056165,62313.0,62312.0,0.30408535]
[1728121396134,0.056165,62313.0,62312.0,0.30416258]
[1728121398536,0.056165,62313.0,62312.0,0.26517088]
[1728121400034,0.1237,62318.0,62312.0,0.26517088]
[1728121400035,0.0037,62318.0,62314.0,0.056164]
[1728121400237,0.0037,62322.0,62321.0,0.056158]
[1728121400436,0.416956,62323.0,62321.0,0.28929756]
[1728121400737,0.416956,62323.0,62321.0,0.25598743]
[1728121401128,0.416956,62323.0,62322.0,0.07982943]
[1728121401329,0.416956,62323.0,62322.0,0.13598643]
[1728121401330,0.3608,62323.0,62322.0,0.13598643]
[1728121401535,0.3608,62323.0,62322.0,0.056157]
[1728121401930,0.3608,62323.0,62322.0,0.16887002]
[1728121403135,0.00240748,62325.0,62324.0,0.056155]
[1728121403342,0.00240748,62325.0,62324.0,0.28886802]
[1728121404040,0.00240748,62325.0,62324.0,0.32126802]
[1728121404242,0.1237,62332.0,62324.0,0.36197384]
[1728121404430,0.176148,62332.0,62331.0,0.06376309]
[1728121404632,0.056148,62332.0,62330.0,0.176149]
[1728121404940,0.176145,62335.0,62332.0,0.056148]
[1728121405236,0.0313,62336.0,62333.0,0.12]
[1728121405439,0.0313,62336.0,62335.0,0.04779495]
[1728121405741,0.0313,62336.0,62334.0,0.10394095]
[1728121405942,0.087444,62336.0,62334.0,0.10394095]
[1728121406240,0.056144,62336.0,62334.0,0.10394095]
[1728121406633,0.11951,62335.0,62323.0,0.01218384]
[1728121406938,0.11951,62334.0,62333.0,0.12]
[1728121407143,0.11951,62334.0,62333.0,0.176147]
[1728121408541,0.11951,62334.0,62333.0,0.177147]
[1728121408840,0.11951,62334.0,62333.0,0.178147]
[1728121408841,0.12051,62334.0,62333.0,0.178147]
[1728121411335,0.12051,62334.0,62333.0,0.177147]
[1728121411539,0.24807285,62334.0,62333.0,0.178147]
[1728121411840,0.29631214,62334.0,62333.0,0.177147]
[1728121412051,0.29731214,62334.0,62333.0,0.178147]
[1728121412644,0.29731214,62334.0,62333.0,0.20669007]
[1728121413538,0.002,62334.0,62333.0,0.20669007]
[1728121416638,0.002,62334.0,62333.0,0.56749007]
[1728121418339,0.002,62334.0,62333.0,0.20669007]
[1728121418541,0.002,62334.0,62333.0,0.56749007]
[1728121420936,0.002,62334.0,62333.0,0.44749007]
[1728121421143,0.002,62334.0,62333.0,0.56749007]
[1728121421944,0.07226289,62334.0,62333.0,0.56749007]
[1728121422950,0.03298369,62334.0,62333.0,0.56749007]
[1728121423338,0.15298369,62334.0,62333.0,0.44749007]
[1728121423538,0.19226297,62334.0,62333.0,0.44749007]
[1728121424151,0.19226297,62334.0,62333.0,0.08669007]
[1728121425345,0.07226297,62334.0,62333.0,0.08669007]
[1728121425946,0.19226297,62334.0,62333.0,0.08669007]
[1728121426146,0.19226629,62334.0,62333.0,0.08669007]
[1728121427748,0.07226629,62334.0,62333.0,0.08669007]
[1728121427954,0.19226629,62334.0,62333.0,0.08669007]
[1728121431551,0.15298519,62334.0,62333.0,0.08669007]
[1728121432855,0.122,62334.0,62333.0,0.08669007]
[1728121433352,0.072,62334.0,62333.0,0.08669007]
[1728121433561,0.086245,62335.0,62333.0,0.29660394]
[1728121433751,0.12,62334.0,62333.0,0.29660394]
[1728121434257,0.086245,62335.0,62333.0,0.29660394]
[1728121434457,0.206245,62335.0,62333.0,0.41660394]
[1728121434651,0.207245,62335.0,62333.0,0.41660394]
[1728121434849,0.207245,62335.0,62333.0,0.29660394]
[1728121436558,0.207245,62335.0,62333.0,0.20095227]
[1728121437260,0.207245,62335.0,62333.0,0.08669007]
[1728121439464,0.0311,62335.0,62334.0,0.056146]
[1728121441555,0.0311,62335.0,62334.0,0.057146]
[1728121441764,0.0301,62335.0,62334.0,0.058146]
[1728121443656,0.10036629,62335.0,62332.0,0.12]
[1728121443859,0.11950248,62334.0,62332.0,0.176147]
[1728121444052,0.0301,62335.0,62332.0,0.176147]
[1728121444053,0.11950248,62333.0,62332.0,0.176147]
[1728121444254,0.0301,62335.0,62332.0,0.34232412]
[1728121444255,0.17644977,62334.0,62332.0,0.34232412]
[1728121444456,0.0301,62335.0,62332.0,0.22874688]
[1728121444650,0.0301,62335.0,62334.0,0.056146]
[1728121445862,0.0301,62335.0,62334.0,0.058146]
[1728121452471,0.0610855,62335.0,62334.0,0.058146]
[1728121453158,0.0309855,62335.0,62334.0,0.058146]
[1728121456661,0.176144,62337.0,62334.0,0.058146]
[1728121456863,0.03098519,62336.0,62334.0,0.058146]
[1728121457163,0.03098519,62335.0,62334.0,0.058146]
[1728121457564,0.03098519,62335.0,62334.0,0.178146]
[1728121457865,0.03098519,62335.0,62334.0,0.177146]
[1728121458065,0.03098519,62335.0,62334.0,0.178146]
[1728121458565,0.03198519,62335.0,62334.0,0.178146]
[1728121458769,0.03298519,62335.0,62334.0,0.178146]
[1728121459268,0.002,62335.0,62334.0,0.42827193]
[1728121459457,0.3608,62338.0,62336.0,0.056144]
[1728121459662,0.3608,62338.0,62337.0,0.26606065]
[1728121459867,0.3608,62338.0,62337.0,0.17025354]
[1728121460976,0.3608,62338.0,62337.0,0.26605852]
[1728121461565,0.3608,62338.0,62337.0,0.26705852]
[1728121461776,0.3608,62338.0,62337.0,0.26805852]
[1728121462271,0.3608,62338.0,62337.0,0.29225354]
[1728121463275,0.3608,62338.0,62337.0,0.38805215]
[1728121465479,0.3608,62338.0,62337.0,0.29225354]
[1728121467474,0.39178377,62338.0,62337.0,0.178143]
[1728121467873,0.43106307,62338.0,62337.0,0.178143]
[1728121470287,0.39178377,62338.0,62337.0,0.178143]
[1728121470773,0.43106215,62338.0,62337.0,0.178143]
[1728121471284,0.39178377,62338.0,62337.0,0.178143]
[1728121471466,0.39178304,62338.0,62337.0,0.178143]
[1728121473472,0.3608,62338.0,62337.0,0.178143]
[1728121474376,0.3608,62338.0,62337.0,0.29200619]
[1728121476381,0.3608,62338.0,62337.0,0.29198555]
[1728121476775,0.3608,62338.0,62337.0,0.42768413]
[1728121478682,0.05614,62341.0,62338.0,0.056142]
[1728121478884,0.05614,62341.0,62340.0,0.12]
[1728121479077,0.05614,62341.0,62340.0,0.23384255]
[1728121480280,0.05614,62341.0,62340.0,0.28998255]
[1728121480675,0.05614,62341.0,62340.0,0.29198255]
[1728121481281,0.0002,62343.0,62342.0,0.056139]
[1728121481582,0.0002,62343.0,62342.0,0.16968346]
[1728121482379,0.05732078,62343.0,62342.0,0.056139]
[1728121482580,0.05732078,62343.0,62342.0,0.176139]
[1728121482777,0.05732078,62343.0,62342.0,0.177139]
[1728121483987,0.05732078,62343.0,62342.0,0.178139]
[1728121485981,0.026338,62343.0,62342.0,0.178139]
[1728121486188,0.05732079,62343.0,62342.0,0.178139]
[1728121488180,0.05732079,62343.0,62342.0,0.206991]
[1728121488377,0.09659932,62343.0,62342.0,0.206991]
[1728121488578,0.14583289,62343.0,62342.0,0.206991]
[1728121488886,0.50663289,62343.0,62342.0,0.206991]
[1728121489483,0.50663289,62343.0,62342.0,0.32066069]
[1728121489484,0.387138,62343.0,62342.0,0.32066069]
[1728121490987,0.387138,62343.0,62342.0,0.3206372]
[1728121491592,0.387138,62343.0,62342.0,0.41642373]
[1728121492688,0.387138,62343.0,62342.0,0.24028473]
[1728121492891,0.868338,62343.0,62342.0,0.1156462]
[1728121493092,0.868338,62343.0,62342.0,0.0657462]
[1728121493291,0.868338,62343.0,62342.0,0.07983866]
[1728121493493,0.868338,62343.0,62337.0,0.09578653]
[1728121493494,0.056139,62342.0,62341.0,0.07983866]
[1728121493690,0.176139,62342.0,62341.0,0.07983866]
[1728121494688,0.176139,62342.0,62341.0,0.08083866]
[1728121495398,0.177139,62342.0,62341.0,0.08183866]
[1728121496192,0.177139,62342.0,62341.0,0.002]
[1728121497603,0.177139,62342.0,62341.0,0.08180526]
[1728121497795,0.177139,62342.0,62341.0,0.002]
[1728121498896,0.177139,62342.0,62341.0,0.08180526]
[1728121499204,0.177139,62342.0,62341.0,0.002]
[1728121499702,0.177139,62342.0,62341.0,0.08180526]
[1728121500394,0.177139,62342.0,62341.0,0.002]
[1728121503396,0.177139,62342.0,62341.0,0.08180526]
[1728121504406,0.24740652,62342.0,62341.0,0.002]
[1728121509506,0.45704653,62342.0,62341.0,0.002]
[1728121511908,0.45694885,62342.0,62341.0,0.002]
[1728121512403,0.177139,62342.0,62341.0,0.08180526]
[1728121512602,0.177139,62342.0,62341.0,0.19525624]
[1728121513308,0.177139,62342.0,62341.0,0.002]
[1728121513609,0.537939,62342.0,62341.0,0.002]
[1728121514296,0.537939,62342.0,62341.0,0.08180526]
[1728121516100,0.537939,62342.0,62341.0,0.19525834]
[1728121516297,0.537939,62342.0,62341.0,0.08180526]
[1728121516494,0.537939,62342.0,62341.0,0.002]
[1728121516695,0.417939,62342.0,62341.0,0.08180526]
[1728121516900,0.417939,62342.0,62341.0,0.11541413]
[1728121518709,0.417939,62342.0,62341.0,0.1154968]
[1728121519208,0.3618,62342.0,62341.0,0.1154968]
[1728121519401,0.3618,62342.0,62341.0,0.2336368]
[1728121521310,0.3618,62342.0,62341.0,0.36883496]
[1728121521505,0.3618,62342.0,62341.0,0.36881616]
[1728121523208,0.3618,62342.0,62341.0,0.2336368]
[1728121523403,0.3618,62342.0,62341.0,0.32941671]
[1728121523611,0.3216708,62342.0,62341.0,0.32929039]
[1728121527515,0.3216708,62342.0,62341.0,0.12014]
[1728121527516,0.4411668,62342.0,62341.0,0.12014]